bitfinex-derivatives/quotes_BTCF0:USTF0_20251210
["timestamp","ask_amount","ask_price","bid_price","bid_amount"]
[1765390264665,0.0713337,92391.0,92390.0,0.05735237]
[1765390265080,0.0128237,92391.0,92390.0,0.09065809]
[1765390265264,0.0128237,92391.0,92390.0,0.45145809]
[1765390265265,0.002,92391.0,92390.0,0.45145809]
[1765390265773,0.005,92391.0,92390.0,0.45145809]
[1765390266354,0.002,92391.0,92390.0,0.45145809]
[1765390266662,0.005,92391.0,92390.0,0.45145809]
[1765390266965,0.002,92391.0,92390.0,0.45145809]
[1765390267271,0.004,92391.0,92390.0,0.45145809]
[1765390267665,0.06151,92391.0,92390.0,0.45145809]
[1765390268660,0.03183,92391.0,92390.0,0.45145809]
[1765390269371,0.06151,92391.0,92390.0,0.45145809]
[1765390269571,0.06151,92391.0,92390.0,0.4514838]
[1765390270055,0.06151,92391.0,92390.0,0.0344138]
[1765390270863,0.06151,92391.0,92390.0,0.0618938]
[1765390271273,0.06151,92391.0,92390.0,0.0909938]
[1765390272073,0.003,92391.0,92390.0,0.0909938]
[1765390272377,0.03122,92391.0,92390.0,0.0909938]
[1765390272581,0.003,92391.0,92390.0,0.0909938]
[1765390272774,0.03122,92391.0,92390.0,0.0909938]
[1765390272969,0.06118,92391.0,92390.0,0.0909938]
[1765390274271,0.06118,92391.0,92390.0,0.12010419]
[1765390274772,0.03122,92391.0,92390.0,0.0909938]
[1765390274971,0.003,92391.0,92390.0,0.0909938]
[1765390275277,0.03122,92391.0,92390.0,0.12992619]
[1765390275470,0.003,92391.0,92390.0,0.12992619]
[1765390275665,0.003,92391.0,92390.0,0.0909938]
[1765390275866,0.0108228,92399.0,92398.0,0.0108228]
[1765390276077,0.0108228,92399.0,92398.0,0.12879661]
[1765390276470,0.0390428,92399.0,92398.0,0.12879661]
[1765390276671,0.0108228,92399.0,92398.0,0.08991143]
[1765390277075,0.0400428,92399.0,92398.0,0.08991143]
[1765390277476,0.0700028,92399.0,92398.0,0.08991143]
[1765390277976,0.0730028,92399.0,92398.0,0.08991143]
[1765390279281,0.0730028,92399.0,92398.0,0.14825395]
[1765390280381,0.0730028,92399.0,92398.0,0.08991143]
[1765390281682,0.004,92399.0,92398.0,0.08991143]
[1765390281988,0.004,92399.0,92398.0,0.50905395]
[1765390282173,0.004,92399.0,92398.0,0.45071143]
[1765390282767,0.003,92399.0,92398.0,0.45071143]
[1765390282968,0.00016226,92418.0,92417.0,0.05658]
[1765390283177,0.00016226,92418.0,92417.0,0.08991143]
[1765390284583,0.00516226,92418.0,92417.0,0.08991143]
[1765390284879,0.00516226,92418.0,92417.0,0.05658]
[1765390285072,0.00516226,92418.0,92417.0,0.09137903]
[1765390285383,0.00916226,92418.0,92417.0,0.09137903]
[1765390285981,0.00016226,92418.0,92417.0,0.09137903]
[1765390286182,0.00216226,92418.0,92417.0,0.09137903]
[1765390286489,0.00216226,92418.0,92417.0,0.05658]
[1765390287185,0.00216226,92418.0,92417.0,0.09111195]
[1765390287687,0.17573313,92430.0,92429.0,0.0673993]
[1765390287889,0.0108186,92435.0,92434.0,0.0673987]
[1765390288186,0.0655186,92435.0,92434.0,0.05658]
[1765390288885,0.0655186,92435.0,92434.0,0.0673987]
[1765390289283,0.0675186,92435.0,92434.0,0.0673987]
[1765390290774,0.0675186,92435.0,92434.0,0.05658]
[1765390291087,0.0567,92435.0,92434.0,0.05658]
[1765390291383,0.002,92435.0,92434.0,0.05658]
[1765390291888,0.002,92435.0,92434.0,0.45177048]
[1765390292086,0.001,92435.0,92434.0,0.45177048]
[1765390292275,0.002,92435.0,92434.0,0.45177048]
[1765390292476,0.00016235,92444.0,92443.0,0.05883]
[1765390292672,0.00016235,92444.0,92443.0,0.4304476]
[1765390294881,0.00016235,92444.0,92443.0,0.46466006]
[1765390295193,0.00016235,92444.0,92443.0,0.4314476]
[1765390295384,0.00016235,92444.0,92443.0,0.4324476]
[1765390295583,0.02760235,92444.0,92443.0,0.42163]
[1765390296782,0.05486235,92444.0,92443.0,0.42163]
[1765390298490,0.00016235,92444.0,92443.0,0.42163]
[1765390299689,0.0108162,92456.0,92455.0,0.05883]
[1765390300082,0.3608,92458.0,92455.0,0.05883]
[1765390300083,0.4155,92458.0,92457.0,0.05883]
[1765390300282,0.0547,92458.0,92457.0,0.05883]
[1765390301193,0.0567,92458.0,92457.0,0.05883]
[1765390301582,0.0587,92458.0,92457.0,0.05883]
[1765390302196,0.0567,92458.0,92457.0,0.05883]
[1765390302380,0.0587,92458.0,92457.0,0.05883]
[1765390303292,0.004,92458.0,92457.0,0.05883]
[1765390303981,0.002,92458.0,92457.0,0.09300525]
[1765390304280,0.002,92458.0,92457.0,0.81460525]
[1765390304486,0.004,92458.0,92457.0,0.81460525]
[1765390304791,0.002,92458.0,92457.0,0.81460525]
[1765390304994,0.0010815,92465.0,92464.0,0.0696452]
[1765390305393,0.0557815,92465.0,92464.0,0.0696452]
[1765390305693,0.0557815,92465.0,92464.0,0.05883]
[1765390305892,0.0547,92458.0,92457.0,0.41963]
[1765390306188,0.02744,92458.0,92457.0,0.41963]
[1765390306392,0.0010815,92465.0,92464.0,0.05883]
[1765390306393,0.0403366,92465.0,92464.0,0.05883]
[1765390306592,0.0675966,92465.0,92464.0,0.05883]
[1765390306782,0.0567815,92465.0,92464.0,0.05883]
[1765390306987,0.0587815,92465.0,92464.0,0.05883]
[1765390307183,0.0577815,92465.0,92464.0,0.05883]
[1765390307685,0.0305215,92465.0,92464.0,0.05883]
[1765390307885,0.0577815,92465.0,92464.0,0.05883]
[1765390308194,0.0587815,92465.0,92464.0,0.05883]
[1765390308898,0.0040815,92465.0,92464.0,0.05883]
[1765390309387,0.0040815,92465.0,92464.0,0.09302149]
[1765390311686,0.03487,92489.0,92488.0,0.0696424]
[1765390311997,0.00743,92489.0,92488.0,0.0696424]
[1765390312493,0.00743,92489.0,92488.0,0.1038428]
[1765390312698,0.00743,92489.0,92488.0,0.4646428]
[1765390313290,0.00843,92489.0,92488.0,0.4646428]
[1765390315100,0.06313,92489.0,92488.0,0.3950004]
[1765390315400,0.06313,92489.0,92488.0,0.4538304]
[1765390315596,0.0791233,92480.0,92479.0,0.05899225]
[1765390315800,0.0791233,92480.0,92479.0,0.09299736]
[1765390315801,0.0655133,92480.0,92479.0,0.09299736]
[1765390316397,0.0547,92480.0,92479.0,0.09299736]
[1765390316600,0.0547,92480.0,92479.0,0.09499736]
[1765390316796,0.02744,92480.0,92479.0,0.09499736]
[1765390317197,0.02744,92480.0,92479.0,0.09699736]
[1765390317394,0.0382528,92485.0,92484.0,0.0696428]
[1765390317701,0.0382528,92485.0,92484.0,0.10364791]
[1765390318406,0.0655128,92485.0,92484.0,0.10364791]
[1765390318600,0.0655128,92485.0,92484.0,0.10464791]
[1765390318797,0.0655128,92485.0,92484.0,0.10564791]
[1765390319800,0.0382528,92485.0,92484.0,0.10564791]
[1765390319996,0.02744,92485.0,92484.0,0.10564791]
[1765390320390,0.05467,92485.0,92484.0,0.10564791]
[1765390320998,0.02744,92485.0,92484.0,0.10564791]
[1765390321201,0.00743,92489.0,92488.0,0.0682424]
[1765390321401,0.00743,92489.0,92488.0,0.46304751]
[1765390321804,0.0108107,92503.0,92497.0,0.0682413]
[1765390322003,0.0108106,92504.0,92497.0,0.4290413]
[1765390322206,0.3608,92511.0,92497.0,0.46226748]
[1765390322207,0.05592225,92498.0,92497.0,0.46226748]
[1765390322405,0.00016225,92498.0,92497.0,0.46226748]
[1765390322702,0.06765011,92515.0,92514.0,0.05743]
[1765390323008,0.04042011,92515.0,92514.0,0.05743]
[1765390323206,0.06765011,92515.0,92514.0,0.05743]
[1765390323909,0.07065011,92515.0,92514.0,0.05743]
[1765390325005,0.0665703,92506.0,92505.0,0.05759216]
[1765390326201,0.0685703,92506.0,92505.0,0.05759216]
[1765390326601,0.0705703,92506.0,92505.0,0.05759216]
[1765390328115,0.05976,92506.0,92505.0,0.05759216]
[1765390328407,0.05976,92506.0,92505.0,0.41839216]
[1765390328408,0.004,92506.0,92505.0,0.41839216]
[1765390329308,0.03253,92506.0,92505.0,0.41839216]
[1765390329502,0.03053,92506.0,92505.0,0.41839216]
[1765390329707,0.03153,92506.0,92505.0,0.41839216]
[1765390330314,0.05962,92506.0,92505.0,0.41839216]
[1765390330506,0.05862,92506.0,92505.0,0.41839216]
[1765390331214,0.05762,92506.0,92505.0,0.41839216]
[1765390331411,0.05862,92506.0,92505.0,0.41839216]
[1765390331815,0.00108091,92515.0,92514.0,0.0665893]
[1765390333512,0.00208091,92515.0,92514.0,0.0665893]
[1765390333710,0.00016216,92524.0,92523.0,0.0665883]
[1765390334307,0.02776,92537.0,92536.0,0.0665868]
[1765390334515,0.00108062,92540.0,92539.0,0.0665864]
[1765390335814,0.00016216,92549.0,92548.0,0.0665854]
[1765390336008,0.00016216,92549.0,92548.0,0.4273854]
[1765390337121,0.05901216,92549.0,92548.0,0.41658]
[1765390337418,0.06101216,92549.0,92548.0,0.05578]
[1765390337815,0.00516216,92549.0,92548.0,0.05578]
[1765390338514,0.00216216,92549.0,92548.0,0.05578]
[1765390338710,0.00316216,92549.0,92548.0,0.05578]
[1765390348315,0.0704832,92567.0,92566.0,0.0681633]
[1765390348628,0.0704829,92570.0,92569.0,0.05736]
[1765390349419,0.0108029,92570.0,92569.0,0.05736]
[1765390349619,0.0704829,92570.0,92569.0,0.05736]
[1765390349818,0.0734829,92570.0,92569.0,0.05736]
[1765390351331,0.0764829,92570.0,92569.0,0.05736]
[1765390354528,0.07684,92561.0,92560.0,0.00016206]
[1765390355528,0.01716,92544.0,92535.0,0.3608]
[1765390355829,0.01716,92552.0,92515.0,0.01060941]
[1765390355830,0.0704862,92542.0,92536.0,0.0143368]
[1765390356020,0.0704862,92542.0,92541.0,0.02823]
[1765390356525,0.0704862,92542.0,92541.0,0.05736]
[1765390356828,0.05968,92539.0,92538.0,0.41816]
[1765390357224,0.0108062,92542.0,92532.0,0.00016206]
[1765390357225,0.0704871,92533.0,92532.0,0.00016206]
[1765390357435,0.4312871,92533.0,92532.0,0.00016206]
[1765390357729,0.4312871,92533.0,92519.0,0.3608]
[1765390357730,0.0405686,92520.0,92519.0,0.38903]
[1765390357938,0.0876486,92520.0,92519.0,0.38903]
[1765390358322,0.0876486,92520.0,92519.0,0.05736]
[1765390358519,0.02976,92509.0,92508.0,0.42897]
[1765390358928,0.00016206,92518.0,92517.0,0.05736]
[1765390359332,0.07065096,92518.0,92517.0,0.05736]
[1765390360531,0.07065096,92518.0,92517.0,0.02823]
[1765390360731,0.07065096,92518.0,92517.0,0.05736]
[1765390360928,0.02976,92509.0,92508.0,0.39203]
[1765390361127,0.02976,92509.0,92508.0,0.41816]
[1765390361128,0.05968,92509.0,92508.0,0.41816]
[1765390362338,0.05968,92509.0,92508.0,0.42416]
[1765390362929,0.0704893,92515.0,92514.0,0.05736]
[1765390364441,0.0704893,92515.0,92514.0,0.06036]
[1765390368538,0.0704893,92515.0,92514.0,0.003]
[1765390368741,0.4322893,92515.0,92514.0,0.002]
[1765390368954,0.0704904,92505.0,92504.0,0.41816]
[1765390370739,0.0704904,92505.0,92504.0,0.42116]
[1765390370945,0.0704904,92505.0,92504.0,0.41816]
[1765390371147,0.0704904,92505.0,92504.0,0.42116]
[1765390371535,0.0704904,92505.0,92504.0,0.41916]
[1765390371735,0.0704904,92505.0,92504.0,0.41816]
[1765390371935,0.0108104,92505.0,92504.0,0.41816]
[1765390372143,0.0405704,92505.0,92504.0,0.41816]
[1765390372541,0.0704904,92505.0,92504.0,0.41816]
[1765390374038,0.0405704,92505.0,92504.0,0.41816]
[1765390374744,0.0108104,92505.0,92504.0,0.41816]
[1765390374947,0.3716093,92515.0,92507.0,0.0108099]
[1765390374948,0.0108101,92508.0,92507.0,0.0108099]
[1765390375152,0.0108101,92508.0,92507.0,0.0681699]
[1765390375739,0.0405701,92508.0,92507.0,0.0681699]
[1765390376345,0.0415701,92508.0,92507.0,0.0681699]
[1765390376854,0.0118101,92508.0,92507.0,0.0681699]
[1765390377049,0.0108101,92508.0,92507.0,0.0681699]
[1765390377545,0.05968,92514.0,92513.0,0.05736]
[1765390377765,0.07065106,92518.0,92517.0,0.05736]
[1765390378067,0.05984206,92518.0,92517.0,0.05736]
[1765390378855,0.06084206,92518.0,92517.0,0.05736]
[1765390380166,0.05984206,92518.0,92517.0,0.05736]
[1765390380366,0.06084206,92518.0,92517.0,0.05736]
[1765390380756,0.03092206,92518.0,92517.0,0.05736]
[1765390380956,0.05872206,92518.0,92517.0,0.05736]
[1765390381662,0.00116206,92518.0,92517.0,0.05736]
[1765390382656,0.00016206,92518.0,92517.0,0.05736]
[1765390382867,0.00116206,92518.0,92517.0,0.05736]
[1765390383570,0.46589389,92532.0,92531.0,0.0657174]
[1765390383772,0.43809389,92532.0,92531.0,0.0657174]
[1765390383973,0.0670465,92539.0,92538.0,0.0657165]
[1765390384165,0.05624,92539.0,92538.0,0.0657165]
[1765390384861,0.05624,92539.0,92538.0,0.09916348]
[1765390385272,0.067046,92543.0,92542.0,0.0657161]
[1765390385566,0.0108059,92544.0,92543.0,0.05491]
[1765390385760,0.0108059,92544.0,92543.0,0.08832536]
[1765390386161,0.0392459,92544.0,92543.0,0.08832536]
[1765390386668,0.0670459,92544.0,92543.0,0.08832536]
[1765390387062,0.0680459,92544.0,92543.0,0.08832536]
[1765390390274,0.0680459,92544.0,92543.0,0.05491]
[1765390391469,0.05724,92544.0,92543.0,0.05491]
[1765390392970,0.07457,92544.0,92543.0,0.05491]
[1765390393173,0.0541,92533.0,92532.0,0.42013]
[1765390393366,0.0541,92533.0,92532.0,0.45339363]
[1765390393869,0.027,92533.0,92532.0,0.46420083]
[1765390394262,0.01833,92544.0,92532.0,0.46620083]
[1765390394468,0.064906,92543.0,92542.0,0.070136]
[1765390395967,0.065906,92543.0,92542.0,0.070136]
[1765390396168,0.065906,92543.0,92542.0,0.05933]
[1765390396369,0.0108071,92534.0,92532.0,0.3608]
[1765390396571,0.07143,92533.0,92532.0,0.4309371]
[1765390397773,0.07143,92533.0,92532.0,0.4319371]
[1765390398578,0.07143,92533.0,92532.0,0.4024571]
[1765390398774,0.07143,92533.0,92532.0,0.4339371]
[1765390401176,0.0541,92533.0,92532.0,0.4339371]
[1765390401976,0.07143,92533.0,92532.0,0.4339371]
[1765390402375,0.07143,92533.0,92532.0,0.42313]
[1765390402570,0.07143,92533.0,92532.0,0.06233]
[1765390403379,0.07143,92533.0,92532.0,0.0721372]
[1765390403680,0.07243,92533.0,92532.0,0.0721372]
[1765390404182,0.07243,92533.0,92532.0,0.0701372]
[1765390404681,0.07243,92533.0,92532.0,0.05933]
[1765390404880,0.07243,92533.0,92532.0,0.09389134]
[1765390406580,0.0551,92533.0,92532.0,0.09389134]
[1765390409679,0.0551,92533.0,92532.0,0.03456134]
[1765390411285,0.0551,92533.0,92532.0,0.06170134]
[1765390411580,0.0551,92533.0,92532.0,0.03456134]
[1765390413079,0.05503,92530.0,92529.0,0.00016215]
[1765390413284,0.05503,92530.0,92529.0,0.03546686]
[1765390413887,0.05503,92530.0,92529.0,0.09122686]
[1765390415085,0.05503,92530.0,92529.0,0.09222686]
[1765390415782,0.05503,92530.0,92529.0,0.06360686]
[1765390416182,0.05503,92530.0,92529.0,0.09222686]
[1765390416482,0.05503,92530.0,92529.0,0.03646686]
[1765390416689,0.05503,92530.0,92529.0,0.06360686]
[1765390416888,0.05503,92530.0,92529.0,0.09222686]
[1765390419690,0.0658375,92530.0,92529.0,0.09222686]
[1765390421581,0.0658375,92530.0,92529.0,0.03646686]
[1765390421781,0.0658375,92530.0,92529.0,0.09222686]
[1765390423389,0.01779,92538.0,92529.0,0.09222686]
[1765390423390,0.21319997,92540.0,92539.0,0.0665664]
[1765390423583,0.0658364,92540.0,92539.0,0.10187111]
[1765390423784,0.02701,92540.0,92539.0,0.10187111]
[1765390423991,0.065836,92543.0,92542.0,0.0665661]
[1765390424188,0.065836,92543.0,92542.0,0.10187081]
[1765390424891,0.065836,92543.0,92542.0,0.0665661]
[1765390425276,0.066836,92543.0,92542.0,0.0665661]
[1765390427575,0.05603,92543.0,92542.0,0.0665661]
[1765390427779,0.001,92543.0,92542.0,0.0665661]
[1765390427980,0.02801,92543.0,92542.0,0.10100349]
[1765390428788,0.0658356,92546.0,92545.0,0.0665657]
[1765390430980,0.0668356,92546.0,92545.0,0.0665657]
[1765390431493,0.0678356,92546.0,92545.0,0.0665657]
[1765390432495,0.0668356,92546.0,92545.0,0.0665657]
[1765390432790,0.0678356,92546.0,92545.0,0.0665657]
[1765390433293,0.05703,92546.0,92545.0,0.0665657]
[1765390433489,0.05503,92535.0,92534.0,0.06701725]
[1765390433698,0.05503,92535.0,92534.0,0.10037091]
[1765390434692,0.05503,92535.0,92534.0,0.10237091]
[1765390435390,0.05503,92535.0,92534.0,0.10337091]
[1765390436086,0.05503,92535.0,92534.0,0.09256391]
[1765390440503,0.05503,92535.0,92534.0,0.03680391]
[1765390440687,0.05503,92535.0,92534.0,0.03092]
[1765390440892,0.05503,92535.0,92534.0,0.05887]
[1765390442397,0.05503,92535.0,92534.0,0.03092]
[1765390442906,0.05503,92535.0,92529.0,0.00016215]
[1765390442907,0.0671375,92530.0,92529.0,0.00016215]
[1765390443295,0.4279375,92530.0,92529.0,0.00016215]
[1765390444006,0.4279375,92530.0,92510.0,0.3608]
[1765390444007,0.0834586,92520.0,92519.0,0.0666787]
[1765390444400,0.0834586,92520.0,92519.0,0.05587]
[1765390444806,0.0834586,92520.0,92519.0,0.08820245]
[1765390445901,0.0271286,92520.0,92515.0,0.05587]
[1765390446199,0.0671391,92516.0,92515.0,0.05587]
[1765390446397,0.0671397,92511.0,92510.0,0.41683215]
[1765390446594,0.0671397,92511.0,92510.0,0.4488577]
[1765390446804,0.0671397,92511.0,92510.0,0.41683215]
[1765390447195,0.0671397,92511.0,92510.0,0.05603215]
[1765390447507,0.0671397,92511.0,92510.0,0.00016215]
[1765390447908,0.067141,92500.0,92499.0,0.4274811]
[1765390448101,0.067141,92500.0,92499.0,0.45921075]
[1765390449609,0.067141,92500.0,92499.0,0.47021075]
[1765390450006,0.067141,92500.0,92499.0,0.10941075]
[1765390450306,0.067141,92500.0,92499.0,0.0776811]
[1765390455411,0.067141,92500.0,92499.0,0.06687]
[1765390456613,0.067141,92500.0,92499.0,0.06187]
[1765390456801,0.069141,92500.0,92499.0,0.06187]
[1765390457001,0.072141,92500.0,92499.0,0.05587]
[1765390458411,0.003,92500.0,92499.0,0.05587]
[1765390458711,0.005,92500.0,92499.0,0.05587]
[1765390458910,0.002,92500.0,92499.0,0.05587]
[1765390459109,0.005,92500.0,92499.0,0.08729815]
[1765390459415,0.005,92500.0,92499.0,0.05587]
[1765390459613,0.004,92500.0,92499.0,0.05587]
[1765390460004,0.002,92500.0,92499.0,0.05587]
[1765390460203,0.010811,92501.0,92499.0,0.05587]
[1765390460204,0.010811,92501.0,92500.0,0.067771]
[1765390460405,0.0658506,92504.0,92503.0,0.0677702]
[1765390461815,0.05504,92504.0,92503.0,0.0677702]
[1765390462014,0.02754,92504.0,92503.0,0.0677702]
[1765390462208,0.02854,92504.0,92503.0,0.0677702]
[1765390463516,0.02854,92504.0,92503.0,0.10055808]
[1765390464422,0.02954,92504.0,92503.0,0.10055808]
[1765390464612,0.002,92504.0,92503.0,0.10055808]
[1765390464815,0.002,92504.0,92503.0,0.0677702]
[1765390465417,0.0118105,92504.0,92503.0,0.0677702]
[1765390465619,0.0128105,92504.0,92503.0,0.0677702]
[1765390465816,0.0118105,92504.0,92503.0,0.0677702]
[1765390466114,0.0128105,92504.0,92503.0,0.0677702]
[1765390466419,0.0393505,92504.0,92503.0,0.0677702]
[1765390466623,0.0403505,92504.0,92503.0,0.0677702]
[1765390467415,0.0128105,92504.0,92503.0,0.0677702]
[1765390468119,0.0685905,92504.0,92503.0,0.0677702]
[1765390468809,0.0685905,92504.0,92503.0,0.05696]
[1765390469216,0.0685905,92504.0,92503.0,0.08982172]
[1765390469520,0.0685905,92504.0,92503.0,0.02923]
[1765390469911,0.0685905,92504.0,92503.0,0.05726]
[1765390472219,0.0848116,92495.0,92494.0,0.00011551]
[1765390472519,0.0848116,92495.0,92494.0,0.09002317]
[1765390473822,0.0848116,92495.0,92494.0,0.09102317]
[1765390474307,0.0848116,92495.0,92494.0,0.00111551]
[1765390474713,0.0848116,92495.0,92494.0,0.03349722]
[1765390475721,0.08492051,92495.0,92494.0,0.03349722]
[1765390476123,0.08492051,92495.0,92494.0,0.03249722]
[1765390476317,0.08592051,92495.0,92494.0,0.03249722]
[1765390476918,0.08592051,92495.0,92494.0,0.03213931]
[1765390476919,0.08692051,92495.0,92494.0,0.03213931]
[1765390479215,0.08692051,92495.0,92494.0,0.08924931]
[1765390479425,0.08692051,92495.0,92494.0,0.03213931]
[1765390480524,0.08692051,92495.0,92494.0,0.06121931]
[1765390480729,0.08692051,92495.0,92494.0,0.08924931]
[1765390484130,0.44772051,92495.0,92494.0,0.03213931]
[1765390484326,0.05741,92482.0,92480.0,0.02905696]
[1765390484519,0.05741,92482.0,92475.0,0.03866902]
[1765390484520,0.0108134,92479.0,92476.0,0.02905696]
[1765390484726,0.41821,92477.0,92476.0,0.05711]
[1765390485029,0.41832551,92477.0,92476.0,0.09013529]
[1765390485821,0.41832551,92477.0,92476.0,0.09213529]
[1765390486721,0.41832551,92477.0,92476.0,0.09313529]
[1765390489336,0.41832551,92477.0,92476.0,0.06011]
[1765390490623,0.36091551,92477.0,92476.0,0.06011]
[1765390490930,0.39008551,92477.0,92476.0,0.0927812]
[1765390491732,0.02928551,92477.0,92476.0,0.0927812]
[1765390497035,0.05752551,92477.0,92476.0,0.0927812]
[1765390497341,0.06833921,92477.0,92476.0,0.0927812]
[1765390500233,0.06833921,92477.0,92476.0,0.0356712]
[1765390500427,0.0702247,92468.0,92467.0,0.02926533]
[1765390500632,0.0702247,92468.0,92467.0,0.00016215]
[1765390500834,0.07034021,92468.0,92467.0,0.00016215]
[1765390501032,0.07034021,92468.0,92467.0,0.05801215]
[1765390501239,0.43114021,92468.0,92467.0,0.05801215]
[1765390501540,0.43114021,92468.0,92467.0,0.06001215]
[1765390501741,0.43114021,92468.0,92467.0,0.00216215]
[1765390501950,0.4310247,92468.0,92467.0,0.00216215]
[1765390502437,0.05941,92454.0,92453.0,0.02910318]
[1765390502643,0.05941,92454.0,92449.0,0.05785]
[1765390502644,0.0878368,92450.0,92449.0,0.05785]
[1765390503450,0.0702275,92444.0,92443.0,0.05785]
[1765390503639,0.07033223,92444.0,92443.0,0.05785]
[1765390504538,0.07133223,92444.0,92443.0,0.05785]
[1765390505045,0.07233223,92444.0,92443.0,0.05785]
[1765390505252,0.06151473,92444.0,92443.0,0.05785]
[1765390505547,0.03204473,92444.0,92443.0,0.05785]
[1765390506148,0.06151473,92444.0,92443.0,0.05785]
[1765390506346,0.00210473,92444.0,92443.0,0.05785]
[1765390506544,0.3608,92456.0,92455.0,0.0686662]
[1765390506744,0.3608,92456.0,92454.0,0.00865]
[1765390506745,0.1863518,92460.0,92458.0,0.05785]
[1765390507139,0.05957224,92459.0,92458.0,0.05785]
[1765390507550,0.05957224,92459.0,92458.0,0.0686659]
[1765390508051,0.06157224,92459.0,92458.0,0.05785]
[1765390508549,0.06357224,92459.0,92458.0,0.05785]
[1765390511538,0.03410224,92459.0,92458.0,0.05785]
[1765390511743,0.00416224,92459.0,92458.0,0.05785]
[1765390512144,0.03154224,92459.0,92458.0,0.05785]
[1765390512350,0.05951224,92459.0,92458.0,0.05785]
[1765390512555,0.05951224,92459.0,92458.0,0.08934978]
[1765390512944,0.05751224,92459.0,92458.0,0.08934978]
[1765390513144,0.05951224,92459.0,92458.0,0.08934978]
[1765390513553,0.05851224,92459.0,92458.0,0.08934978]
[1765390513946,0.05651224,92459.0,92458.0,0.08934978]
[1765390514144,0.05751224,92459.0,92458.0,0.08934978]
[1765390514656,0.00216224,92459.0,92458.0,0.08934978]
[1765390514850,0.01724,92490.0,92489.0,0.05811]
[1765390514851,0.0661621,92490.0,92489.0,0.05811]
[1765390516460,0.4269621,92490.0,92489.0,0.05811]
[1765390517053,0.4289621,92490.0,92489.0,0.05811]
[1765390517247,0.4309621,92490.0,92489.0,0.05811]
[1765390517745,0.4289621,92490.0,92489.0,0.05811]
[1765390517945,0.4309621,92490.0,92489.0,0.05811]
[1765390524657,0.42015,92490.0,92489.0,0.0689223]
[1765390524858,0.3648,92490.0,92489.0,0.0689223]
[1765390525052,0.004,92490.0,92489.0,0.10037988]
[1765390525960,0.03138,92490.0,92489.0,0.10037988]
[1765390526261,0.02938,92490.0,92489.0,0.10037988]
[1765390526562,0.07459,92490.0,92489.0,0.10037988]
[1765390526856,0.02797,92481.0,92464.0,0.02904102]
[1765390527061,0.0661651,92465.0,92464.0,0.05811]
[1765390527264,0.0661651,92465.0,92464.0,0.08956318]
[1765390527455,0.3608,92471.0,92469.0,0.05811]
[1765390527660,0.3608,92471.0,92470.0,0.07583]
[1765390527857,0.3716144,92471.0,92470.0,0.07583]
[1765390528956,0.3716144,92471.0,92470.0,0.05811]
[1765390529162,0.0674752,92464.0,92463.0,0.07391]
[1765390530766,0.0674752,92464.0,92463.0,0.11024117]
[1765390531264,0.0674752,92464.0,92463.0,0.11224117]
[1765390531861,0.0674752,92464.0,92463.0,0.06119]
[1765390532062,0.0674752,92464.0,92463.0,0.03251]
[1765390532363,0.0674752,92464.0,92463.0,0.005]
[1765390534769,0.0674752,92464.0,92463.0,0.03866801]
[1765390535171,0.0674752,92464.0,92463.0,0.11192801]
[1765390535367,0.0674752,92464.0,92463.0,0.09485801]
[1765390536067,0.5702752,92464.0,92463.0,0.03866801]
[1765390536369,0.5702752,92464.0,92463.0,0.005]
[1765390537566,0.5702752,92464.0,92463.0,0.003]
[1765390537873,0.05666,92462.0,92461.0,0.00016224]
[1765390539164,0.05666,92462.0,92461.0,0.00216224]
[1765390539472,0.05666,92462.0,92461.0,0.00416224]
[1765390542664,0.05666,92462.0,92461.0,0.06035224]
[1765390542858,0.05666,92462.0,92461.0,0.00416224]
[1765390546464,0.05666,92462.0,92461.0,0.06035224]
[1765390546865,0.41746,92462.0,92461.0,0.06035224]
[1765390549870,0.92022,92462.0,92461.0,0.06035224]
[1765390555582,0.9310354,92462.0,92461.0,0.06035224]
[1765390556677,0.9310354,92462.0,92461.0,0.03167224]
[1765390557884,0.9310354,92462.0,92461.0,0.00416224]
[1765390558067,0.9310354,92462.0,87393.0,0.00325593]
[1765390558068,0.17474,92447.0,92446.0,0.11348102]
[1765390558380,0.17474,92447.0,92446.0,0.19981165]
[1765390558774,0.17474,92447.0,92446.0,0.22885267]
[1765390558975,0.17474,92447.0,92446.0,0.19981165]
[1765390559184,0.17474,92447.0,92446.0,0.20481165]
[1765390559378,0.17474,92447.0,92446.0,0.23385267]
[1765390559675,0.17474,92447.0,92446.0,0.19981165]
[1765390560273,0.17474,92447.0,92446.0,0.22885267]
[1765390560674,0.17474,92447.0,92446.0,0.19981165]
[1765390562478,0.17474,92447.0,92446.0,0.22885267]
[1765390562872,0.17474,92447.0,92446.0,0.19981165]
[1765390563373,0.17474,92447.0,92446.0,0.22885267]
[1765390563979,0.17474,92447.0,92446.0,0.03377165]
[1765390564284,0.53554,92447.0,92446.0,0.03377165]
[1765390565887,0.1855579,92441.0,92440.0,0.00108179]
[1765390566087,0.6883179,92441.0,92440.0,0.20028385]
[1765390566474,0.6883179,92441.0,92440.0,0.03424385]
[1765390567786,0.6883179,92441.0,92440.0,0.03524385]
[1765390568390,0.1855587,92434.0,92433.0,9.561e-05]
[1765390568581,0.5463587,92434.0,92433.0,9.561e-05]
[1765390569582,0.5463587,92434.0,92433.0,0.00209561]
[1765390570584,0.5463587,92434.0,92433.0,0.00409561]
[1765390572093,0.5463587,92434.0,92433.0,0.16238561]
[1765390574889,0.9620487,92434.0,92433.0,0.16238561]
[1765390575192,1.0453387,92434.0,92433.0,0.16238561]
[1765390576281,1.0453387,92434.0,92433.0,0.00409561]
[1765390576481,1.0453387,92434.0,92433.0,0.16238561]
[1765390577685,0.5425387,92434.0,92433.0,0.16238561]
[1765390577889,0.0894879,92441.0,92440.0,0.05116]
[1765390578085,0.4502876,92444.0,92443.0,0.15829]
[1765390578582,0.5335776,92444.0,92443.0,0.15829]
[1765390580497,0.5335776,92444.0,92443.0,0.19089217]
[1765390580683,0.4502876,92444.0,92443.0,0.19089217]
[1765390581079,0.1727763,92455.0,92454.0,0.20756]
[1765390581285,0.6756163,92455.0,92454.0,0.24015854]
[1765390581484,0.0108163,92455.0,92454.0,0.24015854]
[1765390582090,0.1727763,92455.0,92454.0,0.24015854]
[1765390582290,0.1747763,92455.0,92454.0,0.24015854]
[1765390582986,0.1767763,92455.0,92454.0,0.24015854]
[1765390587297,0.16596,92455.0,92454.0,0.24015854]
[1765390588205,0.16596,92455.0,92454.0,0.24015446]
[1765390589195,0.16196,92455.0,92454.0,0.24015446]